fUSD/lending_fUSD_20260620
["ID","MTS","AMOUNT","RATE_DAILY","PERIOD"]
[425776773,1781887881000,-500.0,0.0003578,30]
[425776775,1781887881000,-500.0,0.0003578,30]
[425776776,1781887881000,-255.52006919,0.0003578,30]
[425776778,1781887881000,-500.0,0.0003578,30]
[425776779,1781887881000,-500.0,0.0003578,30]
[425776780,1781887881000,-758.06,0.0003578,30]
[425776781,1781887881000,-500.0,0.0003578,30]
[425776782,1781887881000,-769.14,0.0003578,30]
[425776783,1781887881000,-500.0,0.0003578,30]
[425776777,1781887881000,-500.0,0.0003578,30]
[425776784,1781887882000,-1329.2,0.0003578,30]
[425776786,1781887882000,-544.12,0.0003578,30]
[425776785,1781887882000,-500.0,0.0003578,30]
[425776787,1781887882000,-500.0,0.0003578,30]
[425776788,1781887882000,-504.85301186,0.0003578,30]
[425776789,1781887882000,-500.0,0.0003578,30]
[425776791,1781887882000,-527.41,0.0003578,30]
[425776790,1781887882000,-641.52,0.0003578,30]
[425776794,1781887882000,-500.0,0.0003578,30]
[425776793,1781887882000,-500.0,0.0003578,30]
[425776796,1781887882000,-500.0,0.0003578,30]
[425776795,1781887882000,-536.88,0.0003578,30]
[425776797,1781887882000,-500.0,0.0003578,30]
[425776798,1781887882000,-500.0,0.0003578,30]
[425776799,1781887882000,-292.10849963,0.0003578,30]
[425776800,1781887882000,-500.0,0.0003578,30]
[425776792,1781887882000,-500.0,0.0003578,30]
[425776808,1781887883000,-500.0,0.0003578,30]
[425776805,1781887883000,-500.0,0.0003578,30]
[425776806,1781887883000,-500.0,0.0003578,30]
[425776801,1781887883000,-500.0,0.0003578,30]
[425776803,1781887883000,-348.55,0.0003578,30]
[425776802,1781887883000,-508.71,0.0003578,30]
[425776804,1781887883000,-500.0,0.0003578,30]
[425776807,1781887883000,-500.0,0.0003578,30]
[425776812,1781887883000,-303.06392092,0.0003578,30]
[425776810,1781887883000,-531.64,0.0003578,30]
[425776811,1781887883000,-500.0,0.0003578,30]
[425776813,1781887883000,-508.0,0.0003578,30]
[425776814,1781887883000,-500.0,0.0003578,30]
[425776815,1781887883000,-500.0,0.0003578,30]
[425776816,1781887883000,-500.0,0.0003578,30]
[425776817,1781887883000,-500.0,0.0003578,30]
[425776818,1781887883000,-938.69,0.0003578,30]
[425776809,1781887883000,-500.0,0.0003578,30]
[425776819,1781887884000,-500.0,0.0003578,30]
[425776820,1781887884000,-578.3,0.0003578,30]
[425776821,1781887884000,-500.0,0.0003578,30]
[425776822,1781887884000,-500.0,0.0003578,30]
[425776823,1781887884000,-500.0,0.0003578,30]
[425776824,1781887884000,-500.0,0.0003578,30]
[425776825,1781887884000,-500.0,0.0003578,30]
[425776827,1781887884000,-500.0,0.0003578,30]
[425776828,1781887884000,-568.98,0.0003578,30]
[425776829,1781887884000,-500.0,0.0003578,30]
[425776830,1781887884000,-500.0,0.0003578,30]
[425776832,1781887884000,-500.0,0.0003578,30]
[425776831,1781887884000,-1095.52,0.0003578,30]
[425776833,1781887884000,-576.54,0.0003578,30]
[425776834,1781887884000,-500.0,0.0003578,30]
[425776826,1781887884000,-1259.59,0.0003578,30]
[425776839,1781887885000,-500.0,0.0003578,30]
[425776835,1781887885000,-500.0,0.0003578,30]
[425776837,1781887885000,-500.0,0.0003578,30]
[425776836,1781887885000,-808.45,0.0003578,30]
[425776838,1781887885000,-567.37,0.0003578,30]
[425776840,1781887885000,-809.71,0.0003578,30]
[425776841,1781887885000,-308.6,0.0003578,30]
[425776850,1781887885000,-500.0,0.0003578,120]
[425776843,1781887885000,-923.44,0.0003578,30]
[425776845,1781887885000,-500.0,0.0003578,30]
[425776844,1781887885000,-287.29240926,0.0003578,30]
[425776847,1781887885000,-500.0,0.0003578,30]
[425776846,1781887885000,-580.64,0.0003578,30]
[425776848,1781887885000,-500.0,0.0003578,30]
[425776849,1781887885000,-500.0,0.0003578,30]
[425776842,1781887885000,-879.94,0.0003578,30]
[425776857,1781887886000,-505.36313467,0.0003578,30]
[425776851,1781887886000,-500.0,0.0003578,30]
[425776852,1781887886000,-500.0,0.0003578,30]
[425776853,1781887886000,-177.06,0.0003578,30]
[425776854,1781887886000,-500.0,0.0003578,30]
[425776855,1781887886000,-500.0,0.0003578,30]
[425776856,1781887886000,-747.58,0.0003578,30]
[425776859,1781887886000,-500.0,0.0003578,30]
[425776858,1781887886000,-569.82,0.0003578,30]
[425776860,1781887886000,-1017.11,0.0003578,30]
[425776861,1781887886000,-220.46,0.0003578,30]
[425776862,1781887886000,-500.0,0.0003578,30]
[425776864,1781887886000,-500.0,0.0003578,30]
[425776863,1781887886000,-500.0,0.0003578,30]
[425776865,1781887886000,-674.8,0.0003578,30]
[425776866,1781887886000,-500.0,0.0003578,30]
[425776867,1781887886000,-500.0,0.0003578,30]
[425776868,1781887886000,-500.0,0.0003578,30]
[425776875,1781887887000,-500.0,0.0003578,30]
[425776873,1781887887000,-500.0,0.0003578,30]
[425776872,1781887887000,-500.0,0.0003578,30]
[425776870,1781887887000,-500.0,0.0003578,30]
[425776869,1781887887000,-500.0,0.0003578,30]
[425776874,1781887887000,-613.4,0.0003578,30]
[425776871,1781887887000,-509.2711687,0.0003578,30]
[425776876,1781887887000,-500.0,0.0003578,30]
[425776877,1781887887000,-500.0,0.0003578,30]
[425776878,1781887887000,-500.0,0.0003578,30]
[425776879,1781887887000,-599.46,0.0003578,30]
[425776880,1781887887000,-500.0,0.0003578,30]
[425776881,1781887887000,-500.0,0.0003578,30]
[425776882,1781887887000,-1060.51,0.0003578,30]
[425776883,1781887887000,-500.0,0.0003578,30]
[425776885,1781887887000,-500.0,0.0003578,30]
[425776884,1781887887000,-500.0,0.0003578,30]
[425776887,1781887888000,-625.2,0.0003578,30]
[425776886,1781887888000,-500.0,0.0003578,30]
[425776888,1781887888000,-367.43,0.0003578,30]
[425776890,1781887888000,-821.24,0.0003578,30]
[425776889,1781887888000,-588.74,0.0003578,30]
[425776891,1781887888000,-399.35787896,0.0003578,30]
[425776892,1781887888000,-500.0,0.0003578,30]
[425776893,1781887888000,-500.0,0.0003578,30]
[425776902,1781887888000,-500.0,0.0003578,30]
[425776894,1781887888000,-725.68,0.0003578,30]
[425776896,1781887888000,-366.8,0.0003578,30]
[425776897,1781887888000,-500.0,0.0003578,30]
[425776899,1781887888000,-500.0,0.0003578,30]
[425776898,1781887888000,-996.41,0.0003578,30]
[425776900,1781887888000,-1684.99,0.0003578,30]
[425776901,1781887888000,-584.75506301,0.0003578,30]
[425776895,1781887888000,-500.0,0.0003578,30]
[425776908,1781887889000,-506.07508934,0.0003578,30]
[425776909,1781887889000,-517.19,0.0003578,30]
[425776907,1781887889000,-500.0,0.0003578,30]
[425776911,1781887889000,-554.08,0.0003578,30]
[425776905,1781887889000,-500.0,0.0003578,30]
[425776904,1781887889000,-314.87740431,0.0003578,30]
[425776906,1781887889000,-473.11849631,0.0003578,30]
[425776910,1781887889000,-500.0,0.0003578,30]
[425776903,1781887889000,-500.0,0.0003578,30]
[425776913,1781887889000,-500.0,0.0003578,30]
[425776920,1781887889000,-569.17,0.0003578,30]
[425776919,1781887889000,-500.0,0.0003578,30]
[425776918,1781887889000,-500.0,0.0003578,30]
[425776912,1781887889000,-220.61442988,0.0003578,30]
[425776916,1781887889000,-500.0,0.0003578,30]
[425776915,1781887889000,-1338.57,0.0003578,30]
[425776914,1781887889000,-500.0,0.0003578,30]
[425776917,1781887889000,-500.0,0.0003578,30]
[425776926,1781887890000,-500.0,0.0003578,30]
[425776921,1781887890000,-500.0,0.0003578,30]
[425776923,1781887890000,-500.0,0.0003578,30]
[425776922,1781887890000,-500.0,0.0003578,30]
[425776924,1781887890000,-500.0,0.0003578,30]
[425776925,1781887890000,-500.0,0.0003578,30]
[425776927,1781887890000,-662.39,0.0003578,30]
[425776928,1781887890000,-500.0,0.0003578,30]
[425776929,1781887890000,-500.0,0.0003578,30]
[425776930,1781887890000,-500.0,0.0003578,30]
[425776931,1781887890000,-500.0,0.0003578,30]
[425776932,1781887890000,-500.0,0.0003578,30]
[425776933,1781887890000,-614.46,0.0003578,30]
[425776934,1781887890000,-934.77,0.0003578,30]
[425776935,1781887890000,-500.0,0.0003578,30]
[425776937,1781887890000,-500.0,0.0003578,30]
[425776936,1781887890000,-1014.09,0.0003578,30]
[425776938,1781887891000,-833.48,0.0003578,30]
[425776939,1781887891000,-1286.29,0.0003578,30]
[425776940,1781887891000,-507.51,0.0003578,30]
[425776941,1781887891000,-500.0,0.0003578,30]
[425776942,1781887891000,-500.0,0.0003578,30]
[425776943,1781887891000,-500.0,0.0003578,30]
[425776944,1781887891000,-500.0,0.0003578,30]
[425776945,1781887891000,-500.0,0.0003578,30]
[425776946,1781887891000,-500.0,0.0003578,30]
[425776947,1781887891000,-500.0,0.0003578,30]
[425776948,1781887891000,-759.52,0.0003578,30]
[425776949,1781887891000,-627.51,0.0003578,30]
[425776950,1781887891000,-547.43,0.0003578,30]
[425776951,1781887891000,-500.0,0.0003578,30]
[425776952,1781887891000,-500.0,0.0003578,30]
[425776953,1781887892000,-548.15,0.0003578,30]
[425776954,1781887892000,-500.0,0.0003578,30]
[425776956,1781887892000,-500.0,0.0003578,30]
[425776955,1781887892000,-500.0,0.0003578,30]
[425776957,1781887892000,-544.23,0.0003578,30]
[425776958,1781887892000,-547.88,0.0003578,30]
[425776960,1781887892000,-500.0,0.0003578,30]
[425776959,1781887892000,-500.0,0.0003578,30]
[425776962,1781887892000,-500.0,0.0003578,30]
[425776964,1781887892000,-500.0,0.0003578,30]
[425776963,1781887892000,-1348.31,0.0003578,30]
[425776965,1781887892000,-2045.07,0.0003578,30]
[425776967,1781887892000,-664.75,0.0003578,30]
[425776966,1781887892000,-500.0,0.0003578,30]
[425776968,1781887892000,-500.0,0.0003578,30]
[425776961,1781887892000,-500.0,0.0003578,30]
[425776974,1781887893000,-500.0,0.0003578,30]
[425776969,1781887893000,-279.05128047,0.0003578,30]
[425776970,1781887893000,-500.0,0.0003578,30]
[425776971,1781887893000,-537.97,0.0003578,30]
[425776972,1781887893000,-505.89947773,0.0003578,30]
[425776973,1781887893000,-500.0,0.0003578,30]
[425776975,1781887893000,-500.0,0.0003578,30]
[425776976,1781887893000,-500.0,0.0003578,30]
[425776985,1781887893000,-622.37114173,0.0003578,30]
[425776978,1781887893000,-701.68,0.0003578,30]
[425776979,1781887893000,-879.59,0.0003578,30]
[425776980,1781887893000,-500.0,0.0003578,30]
[425776981,1781887893000,-500.0,0.0003578,30]
[425776982,1781887893000,-200.68321339,0.0003578,30]
[425776983,1781887893000,-1145.24,0.0003578,30]
[425776984,1781887893000,-548.92,0.0003578,30]
[425776977,1781887893000,-500.0,0.0003578,30]
[425776986,1781887894000,-500.0,0.0003578,30]
[425776987,1781887894000,-906.68,0.0003578,30]
[425776988,1781887894000,-500.0,0.0003578,30]
[425776990,1781887894000,-500.0,0.0003578,30]
[425776989,1781887894000,-634.83,0.0003578,30]
[425776992,1781887894000,-500.0,0.0003578,30]
[425776991,1781887894000,-500.0,0.0003578,30]
[425776993,1781887894000,-500.0,0.0003578,30]
[425777002,1781887894000,-500.0,0.0003578,30]
[425776995,1781887894000,-500.0,0.0003578,30]
[425776997,1781887894000,-594.02,0.0003578,30]
[425776996,1781887894000,-780.74,0.0003578,30]
[425776998,1781887894000,-500.0,0.0003578,30]
[425776999,1781887894000,-500.0,0.0003578,30]
[425777000,1781887894000,-743.84,0.0003578,30]
[425777001,1781887894000,-500.0,0.0003578,30]
[425776994,1781887894000,-500.0,0.0003578,30]
[425777008,1781887895000,-500.0,0.0003578,30]
[425777007,1781887895000,-500.0,0.0003578,30]
[425777006,1781887895000,-2492.23,0.0003578,30]
[425777009,1781887895000,-577.97,0.0003578,30]
[425777004,1781887895000,-500.0,0.0003578,30]
[425777003,1781887895000,-500.0,0.0003578,30]
[425777005,1781887895000,-1013.87,0.0003578,30]
[425777011,1781887895000,-500.0,0.0003578,30]
[425777019,1781887895000,-574.37,0.0003578,30]
[425777013,1781887895000,-1013.66,0.0003578,30]
[425777012,1781887895000,-503.94354294,0.0003578,30]
[425777014,1781887895000,-500.0,0.0003578,30]
[425777015,1781887895000,-952.89,0.0003578,30]
[425777016,1781887895000,-567.33331141,0.0003578,30]
[425777017,1781887895000,-627.85682327,0.0003578,30]
[425777018,1781887895000,-500.0,0.0003578,30]
[425777010,1781887895000,-505.15603129,0.0003578,30]
[425777021,1781887896000,-723.87,0.0003578,30]
[425777020,1781887896000,-1109.66,0.0003578,30]
[425777023,1781887896000,-2528.15,0.0003578,30]
[425777022,1781887896000,-536.0773525,0.0003578,30]
[425777025,1781887896000,-695.27,0.0003578,30]
[425777024,1781887896000,-500.0,0.0003578,30]
[425777027,1781887896000,-1182.85,0.0003578,30]
[425777026,1781887896000,-636.13,0.0003578,30]
[425777029,1781887896000,-620.19,0.0003578,30]
[425777030,1781887896000,-500.0,0.0003578,30]
[425777031,1781887896000,-628.07,0.0003578,30]
[425777032,1781887896000,-722.6,0.0003578,30]
[425777033,1781887896000,-918.47,0.0003578,30]
[425777034,1781887896000,-284.55785886,0.0003578,30]
[425777035,1781887896000,-662.33,0.0003578,30]
[425777036,1781887896000,-500.0,0.0003578,30]
[425777028,1781887896000,-500.0,0.0003578,30]
[425777037,1781887897000,-900.24,0.0003578,30]
[425777039,1781887897000,-500.0,0.0003578,30]
[425777038,1781887897000,-500.0,0.0003578,30]
[425777040,1781887897000,-636.4,0.0003578,30]
[425777041,1781887897000,-500.0,0.0003578,30]
[425777042,1781887897000,-662.63,0.0003578,30]
[425777043,1781887897000,-500.0,0.0003578,30]
[425777044,1781887897000,-500.0,0.0003578,30]
[425777052,1781887897000,-947.68,0.0003578,30]
[425777046,1781887897000,-500.0,0.0003578,30]
[425777047,1781887897000,-2588.84,0.0003578,30]
[425777048,1781887897000,-500.0,0.0003578,30]
[425777049,1781887897000,-581.17612585,0.0003578,30]
[425777051,1781887897000,-500.0,0.0003578,30]
[425777050,1781887897000,-500.0,0.0003578,30]
[425777053,1781887897000,-500.0,0.0003578,30]
[425777045,1781887897000,-643.62,0.0003578,30]
[425777059,1781887898000,-500.0,0.0003578,30]
[425777058,1781887898000,-1083.37,0.0003578,30]
[425777057,1781887898000,-658.41,0.0003578,30]
[425777061,1781887898000,-846.54,0.0003578,30]
[425777055,1781887898000,-970.43,0.0003578,30]
[425777054,1781887898000,-598.87,0.0003578,30]
[425777056,1781887898000,-500.0,0.0003578,30]
[425777060,1781887898000,-500.0,0.0003578,30]
[425777070,1781887898000,-167.30790475,0.0003578,30]
[425777064,1781887898000,-500.0,0.0003578,30]
[425777063,1781887898000,-500.0,0.0003578,30]
[425777065,1781887898000,-649.08,0.0003578,30]
[425777066,1781887898000,-650.2,0.0003578,30]
[425777067,1781887898000,-500.0,0.0003578,30]
[425777068,1781887898000,-500.0,0.0003578,30]
[425777069,1781887898000,-210.67947414,0.0003578,30]
[425777062,1781887898000,-500.0,0.0003578,30]
[425777078,1781887899000,-1580.21,0.0003578,30]
[425777071,1781887899000,-500.0,0.0003578,30]
[425777073,1781887899000,-585.97,0.0003578,30]
[425777075,1781887899000,-846.43,0.0003578,30]
[425777074,1781887899000,-500.0,0.0003578,30]
[425777076,1781887899000,-550.03429011,0.0003578,30]
[425777077,1781887899000,-1066.11,0.0003578,30]
[425777072,1781887899000,-1487.57,0.0003578,30]
[425777080,1781887899000,-500.0,0.0003578,30]
[425777086,1781887899000,-500.0,0.0003578,30]
[425777087,1781887899000,-500.0,0.0003578,30]
[425777085,1781887899000,-500.0,0.0003578,30]
[425777079,1781887899000,-678.01,0.0003578,30]
[425777082,1781887899000,-500.0,0.0003578,30]
[425777083,1781887899000,-500.0,0.0003578,30]
[425777081,1781887899000,-697.26,0.0003578,30]
[425777084,1781887899000,-5570.48,0.0003578,30]
[425777088,1781887900000,-500.0,0.0003578,30]
[425777089,1781887900000,-500.0,0.0003578,30]
[425777091,1781887900000,-500.0,0.0003578,30]
[425777090,1781887900000,-500.0,0.0003578,30]
[425777093,1781887900000,-500.0,0.0003578,30]
[425777094,1781887900000,-500.0,0.0003578,30]
[425777095,1781887900000,-500.0,0.0003578,30]
[425777092,1781887900000,-582.1,0.0003578,30]
[425777097,1781887900000,-734.22,0.0003578,30]
[425777098,1781887900000,-500.0,0.0003578,30]
[425777099,1781887900000,-697.49,0.0003578,30]
[425777101,1781887900000,-1586.38,0.0003578,30]
[425777100,1781887900000,-1473.35,0.0003578,30]
[425777103,1781887900000,-500.0,0.0003578,30]
[425777102,1781887900000,-755.8,0.0003578,30]
[425777096,1781887900000,-651.01,0.0003578,30]
[425777105,1781887901000,-500.0,0.0003578,30]
[425777104,1781887901000,-517.67745325,0.0003578,30]
[425777106,1781887901000,-522.21,0.0003578,30]
[425777107,1781887901000,-500.0,0.0003578,30]
[425777108,1781887901000,-860.38,0.0003578,30]
[425777110,1781887901000,-505.49,0.0003578,30]
[425777109,1781887901000,-741.41,0.0003578,30]
[425777112,1781887901000,-1437.17,0.0003578,30]
[425777113,1781887901000,-500.0,0.0003578,30]
[425777114,1781887901000,-500.0,0.0003578,30]
[425777115,1781887901000,-1064.26,0.0003578,30]
[425777117,1781887901000,-500.0,0.0003578,30]
[425777116,1781887901000,-500.0,0.0003578,30]
[425777118,1781887901000,-500.0,0.0003578,30]
[425777119,1781887901000,-500.0,0.0003578,30]
[425777111,1781887901000,-500.0,0.0003578,30]
[425777120,1781887902000,-509.49193724,0.0003578,30]
[425777121,1781887902000,-216.06254353,0.0003578,30]
[425777122,1781887902000,-512.48,0.0003578,30]
[425777123,1781887902000,-500.0,0.0003578,30]
[425777125,1781887902000,-500.0,0.0003578,30]
[425777124,1781887902000,-500.0,0.0003578,30]
[425777127,1781887902000,-1376.12,0.0003578,30]
[425777126,1781887902000,-500.0,0.0003578,30]
[425777130,1781887902000,-802.44,0.0003578,30]
[425777129,1781887902000,-807.08,0.0003578,30]
[425777131,1781887902000,-999.65,0.0003578,30]
[425777133,1781887902000,-500.0,0.0003578,30]
[425777132,1781887902000,-500.0,0.0003578,30]
[425777135,1781887902000,-612.73,0.0003578,30]
[425777134,1781887902000,-535.98,0.0003578,30]
[425777128,1781887902000,-515.79,0.0003578,30]
[425777140,1781887903000,-500.0,0.0003578,30]
[425777136,1781887903000,-526.37,0.0003578,30]
[425777137,1781887903000,-237.88,0.0003578,30]
[425777138,1781887903000,-500.0,0.0003578,30]
[425777139,1781887903000,-500.0,0.0003578,30]
[425777141,1781887903000,-1188.41,0.0003578,30]
[425777143,1781887903000,-710.03,0.0003578,30]
[425777142,1781887903000,-500.0,0.0003578,30]
[425777144,1781887903000,-500.0,0.0003578,30]
[425777145,1781887903000,-500.0,0.0003578,30]
[425777146,1781887903000,-500.0,0.0003578,30]
[425777147,1781887903000,-1214.29,0.0003578,30]
[425777148,1781887903000,-208.04,0.0003578,30]
[425777149,1781887903000,-500.0,0.0003578,30]
[425777151,1781887903000,-2990.41,0.0003578,30]
[425777150,1781887903000,-1458.25,0.0003578,30]
[425777152,1781887904000,-500.0,0.0003578,30]
[425777154,1781887904000,-500.0,0.0003578,30]
[425777153,1781887904000,-1675.21,0.0003578,30]
[425777156,1781887904000,-5534.69,0.0003578,30]
[425777155,1781887904000,-604.0,0.0003578,30]
[425777157,1781887904000,-607.03,0.0003578,30]
[425777158,1781887904000,-500.0,0.0003578,30]
[425777159,1781887904000,-500.0,0.0003578,30]
[425777160,1781887904000,-500.0,0.0003578,30]
[425777161,1781887904000,-3792.83,0.0003578,30]
[425777162,1781887904000,-500.0,0.0003578,30]
[425777163,1781887904000,-151.0,0.0003578,30]
[425777164,1781887904000,-500.0,0.0003578,30]
[425777165,1781887904000,-565.87,0.0003578,30]
[425777167,1781887904000,-607.04,0.0003578,30]
[425777166,1781887904000,-500.0,0.0003578,30]
[425777168,1781887905000,-151.0,0.0003578,30]
[425777169,1781887905000,-575.06,0.0003578,30]
[425777170,1781887905000,-500.0,0.0003578,30]
[425777172,1781887905000,-500.0,0.0003578,30]
[425777171,1781887905000,-583.597901,0.0003578,30]
[425777173,1781887905000,-151.0,0.0003578,30]
[425777174,1781887905000,-151.0,0.0003578,30]
[425777175,1781887905000,-583.597901,0.0003578,30]
[425777183,1781887905000,-500.0,0.0003578,30]
[425777177,1781887905000,-853.91,0.0003578,30]
[425777178,1781887905000,-445.774,0.0003578,30]
[425777179,1781887905000,-151.0,0.0003578,30]
[425777180,1781887905000,-559.13,0.0003578,30]
[425777182,1781887905000,-1164.63,0.0003578,30]
[425777181,1781887905000,-583.597901,0.0003578,30]
[425777184,1781887905000,-583.597901,0.0003578,30]
[425777176,1781887905000,-500.0,0.0003578,30]
[425777185,1781887906000,-445.774,0.0003578,30]
[425777191,1781887906000,-500.0,0.0003578,30]
[425777187,1781887906000,-500.0,0.0003578,30]
[425777189,1781887906000,-158.845043,0.0003578,30]
[425777188,1781887906000,-500.0,0.0003578,30]
[425777190,1781887906000,-445.774,0.0003578,30]
[425777192,1781887906000,-500.0,0.0003578,30]
[425777186,1781887906000,-151.0,0.0003578,30]
[425777194,1781887906000,-445.774,0.0003578,30]
[425777196,1781887906000,-151.0,0.0003578,30]
[425777195,1781887906000,-3075.0,0.0003578,30]
[425777198,1781887906000,-876.43,0.0003578,30]
[425777197,1781887906000,-151.0,0.0003578,30]
[425777199,1781887906000,-500.0,0.0003578,30]
[425777200,1781887906000,-500.0,0.0003578,30]
[425777201,1781887906000,-4074.72,0.0003578,30]
[425777193,1781887906000,-500.0,0.0003578,30]
[425777208,1781887907000,-224.624056,0.0003578,30]
[425777205,1781887907000,-500.0,0.0003578,30]
[425777206,1781887907000,-151.0,0.0003578,30]
[425777202,1781887907000,-500.0,0.0003578,30]
[425777203,1781887907000,-151.0,0.0003578,30]
[425777207,1781887907000,-500.0,0.0003578,30]
[425777204,1781887907000,-581.35,0.0003578,30]
[425777209,1781887907000,-165.073802,0.0003578,30]
[425777218,1781887907000,-165.073802,0.0003578,30]
[425777210,1781887907000,-985.23,0.0003578,30]
[425777212,1781887907000,-165.073802,0.0003578,30]
[425777213,1781887907000,-2092.1,0.0003578,30]
[425777214,1781887907000,-542.45,0.0003578,30]
[425777216,1781887907000,-606.07,0.0003578,30]
[425777215,1781887907000,-1444.74,0.0003578,30]
[425777217,1781887907000,-1277.26,0.0003578,30]
[425777211,1781887907000,-500.0,0.0003578,30]
[425777219,1781887908000,-500.0,0.0003578,30]
[425777221,1781887908000,-640.19,0.0003578,30]
[425777222,1781887908000,-1776.22,0.0003578,30]
[425777223,1781887908000,-500.0,0.0003578,30]
[425777224,1781887908000,-165.073802,0.0003578,30]
[425777226,1781887908000,-842.27,0.0003578,30]
[425777225,1781887908000,-652.73,0.0003578,30]
[425777220,1781887908000,-650.27,0.0003578,30]
[425777228,1781887908000,-737.33,0.0003578,30]
[425777229,1781887908000,-264.78,0.0003578,30]
[425777230,1781887908000,-500.0,0.0003578,30]
[425777231,1781887908000,-500.0,0.0003578,30]
[425777232,1781887908000,-637.63612884,0.0003578,30]
[425777233,1781887908000,-500.0,0.0003578,30]
[425777234,1781887908000,-500.0,0.0003578,30]
[425777235,1781887908000,-500.0,0.0003578,30]
[425777227,1781887908000,-500.0,0.0003578,30]
[425777241,1781887909000,-500.0,0.0003578,30]
[425777240,1781887909000,-553.05,0.0003578,30]
[425777236,1781887909000,-500.0,0.0003578,30]
[425777238,1781887909000,-958.15,0.0003578,30]
[425777237,1781887909000,-500.0,0.0003578,30]
[425777242,1781887909000,-500.0,0.0003578,30]
[425777239,1781887909000,-151.0,0.0003578,30]
[425777243,1781887909000,-500.0,0.0003578,30]
[425777247,1781887909000,-500.0,0.0003578,30]
[425777245,1781887909000,-500.0,0.0003578,30]
[425777246,1781887909000,-621.71,0.0003578,30]
[425777249,1781887909000,-502.42,0.0003578,30]
[425777248,1781887909000,-151.0,0.0003578,30]
[425777250,1781887909000,-537.57,0.0003578,30]
[425777251,1781887909000,-151.0,0.0003578,30]
[425777252,1781887909000,-575.14,0.0003578,30]
[425777244,1781887909000,-151.0,0.0003578,30]
[425777257,1781887910000,-721.82,0.0003578,30]
[425777258,1781887910000,-500.0,0.0003578,30]
[425777256,1781887910000,-500.0,0.0003578,30]
[425777259,1781887910000,-500.0,0.0003578,30]
[425777253,1781887910000,-500.0,0.0003578,30]
[425777254,1781887910000,-500.0,0.0003578,30]
[425777255,1781887910000,-500.0,0.0003578,30]
[425777261,1781887910000,-500.0,0.0003578,30]
[425777268,1781887910000,-173.78,0.0003578,30]
[425777263,1781887910000,-1000.0,0.0003578,30]
[425777262,1781887910000,-586.53886684,0.0003578,30]
[425777265,1781887910000,-500.0,0.0003578,30]
[425777264,1781887910000,-500.0,0.0003578,30]
[425777266,1781887910000,-1264.79,0.0003578,30]
[425777267,1781887910000,-500.0,0.0003578,30]
[425777270,1781887910000,-757.69,0.0003578,30]
[425777269,1781887910000,-1847.83,0.0003578,30]
[425777260,1781887910000,-500.0,0.0003578,30]
[425777271,1781887911000,-552.56,0.0003578,30]
[425777272,1781887911000,-500.0,0.0003578,30]
[425777273,1781887911000,-444.4,0.0003578,30]